fUST/lending_fUST_20250619
["ID","MTS","AMOUNT","RATE_DAILY","PERIOD"]
[366461471,1750266646388,-460.0,0.00023561,6]
[366461473,1750266646397,-498.6,0.00023561,6]
[366461474,1750266646406,-478.93,0.00023561,6]
[366461477,1750266646416,-460.0,0.00023561,6]
[366461478,1750266646426,-460.0,0.00023561,6]
[366461480,1750266646435,-597.19,0.00023561,6]
[366461482,1750266646444,-460.0,0.00023561,6]
[366461483,1750266646453,-460.0,0.00023561,6]
[366461484,1750266646465,-779.05,0.00023561,6]
[366461485,1750266646475,-460.0,0.00023561,6]
[366461486,1750266646483,-460.0,0.00023561,6]
[366461487,1750266646493,-460.0,0.00023561,6]
[366461488,1750266646503,-549.8,0.00023561,6]
[366461489,1750266646513,-460.0,0.00023561,6]
[366461490,1750266646522,-460.0,0.00023561,6]
[366461491,1750266646532,-460.0,0.00023561,6]
[366461492,1750266646542,-2534.34,0.00023561,6]
[366461493,1750266646554,-533.63,0.00023561,6]
[366461494,1750266646564,-3241.28,0.00023561,6]
[366461495,1750266646573,-460.0,0.00023561,6]
[366461496,1750266646582,-2911.73,0.00023561,6]
[366461497,1750266646592,-1801.71,0.00023561,6]
[366461498,1750266646601,-2490.64,0.00023561,6]
[366461499,1750266646610,-460.0,0.00023561,6]
[366461500,1750266646619,-1155.83,0.00023561,6]
[366461501,1750266646629,-541.52577361,0.00023561,6]
[366461502,1750266646639,-768.27,0.00023561,6]
[366461503,1750266646648,-460.0,0.00023561,6]
[366461504,1750266646657,-460.0,0.00023561,6]
[366461505,1750266646666,-460.0,0.00023561,6]
[366461506,1750266646675,-580.86,0.00023561,6]
[366461507,1750266646684,-1086.9,0.00023561,6]
[366461508,1750266646694,-1468.05,0.00023561,6]
[366461509,1750266646703,-524.04,0.00023561,6]
[366461510,1750266646712,-460.0,0.00023561,6]
[366461511,1750266646721,-460.0,0.00023561,6]
[366461512,1750266646730,-460.0,0.00023561,6]
[366461513,1750266646740,-460.0,0.00023561,6]
[366461514,1750266646749,-944.27,0.00023561,6]
[366461515,1750266646758,-460.0,0.00023561,6]
[366461516,1750266646768,-460.0,0.00023561,6]
[366461517,1750266646778,-460.0,0.00023561,6]
[366461518,1750266646787,-499.55,0.00023561,6]
[366461519,1750266646796,-743.13,0.00023561,6]
[366461520,1750266646806,-460.0,0.00023561,6]
[366461521,1750266646816,-460.0,0.00023561,6]
[366461522,1750266646825,-540.25,0.00023561,6]
[366461523,1750266646834,-502.52,0.00023561,6]
[366461524,1750266646844,-460.0,0.00023561,6]
[366461525,1750266646853,-1228.67,0.00023561,6]
[366461526,1750266646862,-460.0,0.00023561,6]
[366461527,1750266646871,-460.0,0.00023561,6]
[366461528,1750266646881,-952.44,0.00023561,6]
[366461529,1750266646891,-590.45,0.00023561,6]
[366461530,1750266646900,-460.0,0.00023561,6]
[366461531,1750266646909,-5059.16,0.00023561,6]
[366461532,1750266646918,-469.87,0.00023561,6]
[366461533,1750266646928,-2585.2,0.00023561,6]
[366461534,1750266646937,-1213.11,0.00023561,6]
[366461535,1750266646946,-561.04,0.00023561,6]
[366461536,1750266646955,-460.0,0.00023561,6]
[366461537,1750266646965,-460.0,0.00023561,2]
[366461538,1750266646974,-306.0,0.00023562,2]
[366461539,1750266646983,-317.8616018,0.00023562,2]
[366461540,1750266646992,-177.0323298,0.00023562,2]
[366461541,1750266647001,-574.2153043,0.00023562,2]
[366461542,1750266647010,-574.2153043,0.00023562,2]
[366461543,1750266647019,-515.3103067,0.00023562,2]
[366461544,1750266647028,-438.4126145,0.00023562,2]
[366461545,1750266647038,-843.5452496,0.00023566,2]
[366461546,1750266647048,-1500.0,0.00023568,2]
[366461547,1750266647057,-406.0,0.00023596,2]
[366461548,1750266647067,-3000.0,0.000236,2]
[366461549,1750266647076,-376.74247123,0.00023605,2]
[366461550,1750266647086,-7110.09881321,0.00023606,2]
[366461551,1750266647101,-3000.0,0.0002361,2]
[366461552,1750266647111,-176.45292331,0.00023616,2]
[366461553,1750266647121,-3000.0,0.0002362,2]
[366461554,1750266647130,-5000.0,0.00023628,3]
[366461555,1750266647139,-500.0,0.00023629,2]
[366461556,1750266647149,-3000.0,0.0002363,2]
[366461557,1750266647159,-3000.0,0.0002364,2]
[366461558,1750266647168,-587.0,0.00023646,2]
[366461559,1750266647177,-3000.0,0.0002365,2]
[366461560,1750266647186,-7110.09881321,0.00023651,2]
[366461561,1750266647196,-14220.19762641,0.00023656,2]
[366461562,1750266647206,-7110.09881321,0.00023659,2]
[366461563,1750266647216,-3000.0,0.0002366,2]
[366461564,1750266647225,-3000.0,0.0002367,2]
[366461565,1750266647235,-500.0,0.00023673,2]
[366461566,1750266647245,-250.22840896,0.00023673,2]
[366461567,1750266647254,-600.0,0.00023673,2]
[366461568,1750266647263,-500.0,0.00023673,2]
[366461569,1750266647273,-500.0,0.00023673,2]
[366461570,1750266647282,-500.0,0.00023673,2]
[366461571,1750266647292,-14220.19762641,0.00023678,2]
[366461572,1750266647302,-3000.0,0.0002368,2]
[366461573,1750266647311,-3000.0,0.0002369,2]
[366461574,1750266647320,-980.45935955,0.00023693,9]
[366461575,1750266647329,-14220.19762641,0.00023694,2]
[366461576,1750266647338,-7110.09881321,0.00023696,2]
[366461577,1750266647347,-151.0,0.000237,7]
[366461578,1750266647356,-3000.0,0.000237,2]
[366461579,1750266647365,-3000.0,0.0002371,2]
[366461580,1750266647374,-3000.0,0.0002372,2]
[366461581,1750266647383,-176.45292331,0.00023726,2]
[366461582,1750266647392,-3000.0,0.0002373,2]
[366461583,1750266647401,-3000.0,0.0002374,2]
[366461584,1750266647410,-500.0,0.00023743,2]
[366461585,1750266647419,-3000.0,0.0002375,2]
[366461586,1750266647428,-3000.0,0.0002376,2]
[366461587,1750266647437,-3000.0,0.0002377,2]
[366461588,1750266647446,-5000.0,0.00023777,2]
[366461589,1750266647456,-200.35640852,0.00023779,6]
[366461590,1750266647468,-151.0,0.00023779,6]
[366461591,1750266647477,-151.0,0.00023779,6]
[366461592,1750266647487,-3000.0,0.0002378,2]
[366461593,1750266647496,-3000.0,0.0002379,2]
[366461594,1750266647506,-150.0,0.00023794,2]
[366461595,1750266647516,-360615.12523767,0.000238,2]
[366461596,1750266647525,-3000.0,0.000238,2]
[366461597,1750266647535,-1000.0,0.000238,2]
[366461598,1750266647545,-151.0,0.00023806,6]
[366461599,1750266647554,-3000.0,0.0002381,2]
[366461600,1750266647564,-3000.0,0.0002382,2]
[366461601,1750266647573,-151.0,0.00023828,6]
[366461602,1750266647583,-3000.0,0.0002383,2]
[366461603,1750266647592,-980.45935955,0.00023831,10]
[366461604,1750266647601,-151.0,0.00023834,6]
[366461605,1750266647611,-460.0,0.00023835,6]
[366461606,1750266647621,-460.0,0.00023835,6]
[366461607,1750266647631,-460.0,0.00023835,6]
[366461608,1750266647640,-468.7,0.00023835,6]
[366461609,1750266647649,-460.0,0.00023835,6]
[366461610,1750266647658,-498.6,0.00023835,6]
[366461611,1750266647668,-478.93,0.00023835,6]
[366461612,1750266647677,-460.0,0.00023835,6]
[366461613,1750266647687,-460.0,0.00023835,6]
[366461614,1750266647696,-152.012568,0.00023835,7]
[366461615,1750266647705,-151.0,0.00023835,7]
[366461616,1750266647715,-151.0,0.00023835,7]
[366461617,1750266647724,-151.0,0.00023835,7]
[366461618,1750266647734,-597.19,0.00023835,6]
[366461619,1750266647744,-529.81900105,0.00023835,6]
[366461620,1750266647753,-460.0,0.00023835,6]
[366461621,1750266647763,-779.05,0.00023835,6]
[366461622,1750266647772,-460.0,0.00023835,6]
[366461623,1750266647782,-224.765325,0.00023835,2]
[366461624,1750266647791,-460.0,0.00023835,6]
[366461625,1750266647801,-460.0,0.00023835,6]
[366461626,1750266647810,-224.765325,0.00023835,2]
[366461627,1750266647820,-549.8,0.00023835,6]
[366461628,1750266647829,-460.0,0.00023835,6]
[366461629,1750266647838,-460.0,0.00023835,6]
[366461630,1750266647848,-460.0,0.00023835,6]
[366461631,1750266647857,-2534.34,0.00023835,6]
[366461632,1750266647867,-533.63,0.00023835,6]
[366461633,1750266647876,-3241.28,0.00023835,6]
[366461634,1750266647886,-460.0,0.00023835,6]
[366461635,1750266647895,-2911.73,0.00023835,6]
[366461636,1750266647904,-1801.71,0.00023835,6]
[366461637,1750266647914,-2490.64,0.00023835,6]
[366461638,1750266647923,-460.0,0.00023835,6]
[366461639,1750266647933,-1155.83,0.00023835,6]
[366461640,1750266647942,-768.27,0.00023835,6]
[366461641,1750266647951,-460.0,0.00023835,6]
[366461642,1750266647961,-460.0,0.00023835,6]
[366461643,1750266647971,-460.0,0.00023835,6]
[366461644,1750266647980,-580.86,0.00023835,6]
[366461645,1750266647989,-1086.9,0.00023835,6]
[366461646,1750266647998,-151.0,0.00023835,7]
[366461647,1750266648008,-151.0,0.00023835,7]
[366461648,1750266648017,-1468.05,0.00023835,6]
[366461649,1750266648027,-524.04,0.00023835,6]
[366461650,1750266648036,-460.0,0.00023835,6]
[366461651,1750266648046,-460.0,0.00023835,6]
[366461652,1750266648055,-460.0,0.00023835,6]
[366461653,1750266648065,-460.0,0.00023835,6]
[366461654,1750266648074,-944.27,0.00023835,6]
[366461655,1750266648084,-460.0,0.00023835,6]
[366461656,1750266648093,-460.0,0.00023835,6]
[366461657,1750266648103,-460.0,0.00023835,6]
[366461658,1750266648113,-499.55,0.00023835,6]
[366461659,1750266648122,-743.13,0.00023835,6]
[366461660,1750266648132,-460.0,0.00023835,6]
[366461661,1750266648141,-460.0,0.00023835,6]
[366461662,1750266648151,-540.25,0.00023835,6]
[366461663,1750266648160,-502.52,0.00023835,6]
[366461664,1750266648171,-460.0,0.00023835,6]
[366461665,1750266648181,-1228.67,0.00023835,6]
[366461666,1750266648190,-460.0,0.00023835,6]
[366461667,1750266648200,-460.0,0.00023835,6]
[366461668,1750266648210,-952.44,0.00023835,6]
[366461669,1750266648219,-590.45,0.00023835,6]
[366461670,1750266648229,-460.0,0.00023835,6]
[366461671,1750266648238,-5059.16,0.00023835,6]
[366461672,1750266648248,-469.87,0.00023835,6]
[366461673,1750266648256,-2585.2,0.00023835,6]
[366461674,1750266648266,-1213.11,0.00023835,6]
[366461675,1750266648277,-561.04,0.00023835,6]
[366461676,1750266648287,-460.0,0.00023835,6]
[366461677,1750266648296,-460.0,0.00023835,2]
[366461678,1750266648306,-176.45292331,0.00023836,2]
[366461679,1750266648316,-3000.0,0.0002384,2]
[366461680,1750266648325,-154.66272973,0.0002384,2]
[366461681,1750266648335,-338.20726565,0.0002384,2]
[366461682,1750266648345,-3000.0,0.0002385,2]
[366461683,1750266648354,-3000.0,0.0002386,2]
[366461684,1750266648363,-245.0,0.00023861,6]
[366461685,1750266648373,-690.45,0.00023869,5]
[366461686,1750266648382,-3000.0,0.0002387,2]
[366461687,1750266648392,-500.0,0.00023874,2]
[366461688,1750266648401,-3000.0,0.0002388,2]
[366461689,1750266648410,-3000.0,0.0002389,2]
[366461690,1750266648420,-1367.8,0.000239,7]
[366461691,1750266648430,-3000.0,0.000239,2]
[366461692,1750266648440,-150.0,0.000239,2]
[366461693,1750266648449,-3000.0,0.0002391,2]
[366461694,1750266648461,-66954.79892115,0.00023919,4]
[366461695,1750266648655,-219.02220529,0.00021917,6]
[366461696,1750266648665,-136199.45719649,0.00023919,4]
[366461697,1750266648677,-52924.55637992,0.00023919,4]
[366461698,1750266648688,-2303.77154161,0.00023919,4]
[366461699,1750266648700,-867.5513445,0.00023919,4]
[366461700,1750266648711,-1131.8398168,0.00023919,4]
[366461701,1750266648895,-265.89663688,0.00021917,6]
[366461702,1750266648905,-460.0,0.00021917,6]
[366461703,1750266648915,-460.0,0.00021917,6]
[366461704,1750266648924,-250.0,0.00022168,2]
[366461705,1750266648934,-2122.31,0.00022191,6]
[366461706,1750266648943,-460.0,0.00022191,6]
[366461707,1750266648952,-568.65,0.00022191,6]
[366461708,1750266648962,-1340.98723964,0.00022465,6]
[366461709,1750266648973,-781.32276036,0.00022465,6]
[366461710,1750266648982,-1970.72551754,0.00022739,6]
[366461711,1750266649191,-460.0,0.00021917,6]
[366461712,1750266649201,-39.950315,0.00021917,6]
[366461713,1750266649312,-420.049685,0.00021917,6]
[366461714,1750266649323,-316.35267997,0.00021917,6]
[366461715,1750266649579,-143.64732003,0.00021917,6]
[366461716,1750266649588,-460.0,0.00021917,6]
[366461717,1750266649597,-333.81,0.00022191,6]
[366461718,1750266649606,-474.87,0.00022191,6]
[366461719,1750266649615,-460.0,0.00022191,6]
[366461720,1750266649624,-460.0,0.00022191,6]
[366461721,1750266649633,-460.0,0.00022465,6]
[366461722,1750266649642,-151.58448246,0.00022739,6]
[366461723,1750266649653,-2122.31,0.00023013,6]
[366461724,1750266649662,-2122.31,0.00023287,6]
[366461725,1750266649671,-151.0,0.000235,5]
[366461726,1750266649681,-2122.31,0.00023561,6]
[366461727,1750266649690,-1234.01615329,0.00023835,6]
[366461728,1750266689675,317.96,0.0001872,2]
[366461729,1750266771789,313.91,0.00018696,2]
[366461731,1750266851377,309.92,0.00018663,2]
[366461734,1750266871318,200.0,0.00024115,120]
[366461735,1750266930433,323.33,0.00018672,2]
[366461737,1750267009782,319.22,0.00018668,2]
[366461740,1750267089443,315.15,0.00018662,2]
[366461742,1750267169082,311.14,0.00018673,2]
[366461747,1750267250922,307.18,0.00018678,2]
[366461748,1750267333195,303.27,0.0001866,2]
[366461770,1750267411810,200.0,0.00024615,120]
[366461771,1750267411859,299.41,0.00018667,2]
[366461772,1750267412871,-202.92814066,0.00019556,2]
[366461773,1750267460405,-200.0,0.00019556,2]
[366461775,1750267470846,200.0,0.00024622,120]
[366461777,1750267491274,292.51,0.0001866,2]
[366461783,1750267572142,288.78,0.00018663,2]
[366461785,1750267593229,-159.77149774,0.00019276,2]
[366461787,1750267651817,301.97,0.00018688,2]
[366461788,1750267654090,-66.58318386,0.00019276,2]
[366461789,1750267654123,-196.1815304,0.00019364,2]
[366461790,1750267654147,-204.316972,0.0001946,2]
[366461791,1750267654169,-120.74977888,0.00019576,2]
[366461794,1750267670664,87139.31662068,0.00019,3]
[366461795,1750267688408,1000.0,0.00024,120]
[366461798,1750267731352,339.8,0.00018686,2]
[366461799,1750267732983,150.0,0.000189,2]
[366461800,1750267746131,-409.36399442,0.00019576,2]
[366461801,1750267746153,-679.59,0.00019576,2]
[366461802,1750267746174,-210.6849129,0.00019698,2]
[366461803,1750267746195,-436.24394367,0.00019698,2]
[366461804,1750267749127,-39.61027533,0.00019698,2]
[366461805,1750267749148,-300.0,0.00019999,2]
[366461806,1750267749169,-8765.92293864,0.0002,2]
[366461807,1750267749190,-2686.56537832,0.0002,2]
[366461808,1750267749211,-1130.65099686,0.0002,2]
[366461809,1750267749232,-110.55107743,0.00020106,2]
[366461811,1750267758099,-2259.86636045,0.00019586,2]
[366461813,1750267774083,-133.71742605,0.00019586,2]
[366461814,1750267774105,-179.77706145,0.00019941,2]
[366461819,1750267812799,326.82,0.00018764,2]
[366461828,1750267832569,-536.17,0.00019658,2]
[366461829,1750267832582,-117.47,0.00019658,2]
[366461830,1750267832592,-820.22293855,0.00019941,2]
[366461831,1750267832602,-216.87439252,0.00019992,2]
[366461832,1750267832612,-1000.0,0.00020321,2]
[366461833,1750267832621,-980.46,0.00020552,2]
[366461834,1750267832630,-300.0,0.00020609,2]
[366461835,1750267832639,-300.0,0.00020609,2]
[366461836,1750267832648,-300.0,0.00020609,2]
[366461837,1750267832657,-1200.0,0.00020609,2]
[366461838,1750267832666,-287.34577963,0.0002061,2]
[366461840,1750267832676,-500.0,0.0002061,2]
[366461843,1750267832686,-500.0,0.0002061,2]
[366461846,1750267832695,-500.0,0.0002061,2]
[366461849,1750267832704,-405.37424447,0.0002061,2]
[366461851,1750267832714,-500.0,0.0002061,2]
[366461853,1750267832722,-500.0,0.0002061,2]
[366461856,1750267832731,-500.0,0.0002061,2]
[366461858,1750267832741,-500.0,0.0002061,2]
[366461860,1750267832750,-500.0,0.0002061,2]
[366461862,1750267832759,-500.0,0.0002061,2]
[366461864,1750267832768,-500.0,0.0002061,2]
[366461866,1750267832778,-500.0,0.0002061,2]
[366461868,1750267832787,-500.0,0.0002061,2]
[366461870,1750267832797,-500.0,0.0002061,2]
[366461872,1750267832806,-500.0,0.0002061,2]
[366461874,1750267832815,-566.76430298,0.0002061,2]
[366461876,1750267832824,-500.0,0.0002061,2]
[366461878,1750267832834,-500.0,0.0002061,2]
[366461880,1750267832848,-524.08834229,0.0002061,2]
[366461882,1750267832862,-15.3601707,0.0002061,2]
[366461884,1750267832871,-299.91113061,0.0002061,2]
[366461886,1750267832880,-500.0,0.0002061,2]
[366461888,1750267832890,-364.10819111,0.0002061,2]
[366461890,1750267832900,-500.0,0.0002061,2]
[366461892,1750267832909,-500.0,0.0002061,2]
[366461894,1750267832919,-500.0,0.0002061,2]
[366461896,1750267832929,-500.0,0.0002061,2]
[366461898,1750267832939,-500.0,0.0002061,2]
[366461900,1750267832949,-500.0,0.0002061,2]
[366461903,1750267832958,-500.0,0.0002061,2]
[366461904,1750267832968,-500.0,0.0002061,2]
[366461906,1750267832977,-500.0,0.0002061,2]
[366461908,1750267832986,-500.0,0.0002061,2]
[366461910,1750267832995,-512.10197116,0.0002061,2]
[366461913,1750267833006,-300.0,0.0002061,2]
[366461914,1750267833015,-1609.09270545,0.00020611,2]
[366462021,1750267838430,-6769.54663051,0.00020611,2]
[366462023,1750267838443,-20158.18255163,0.00020611,2]
[366462025,1750267838453,-8727.12626969,0.00020613,2]
[366462027,1750267838464,-9399.96999525,0.00020613,2]
[366462029,1750267838475,-6772.90373506,0.00020613,2]
[366462031,1750267838485,-730.1325499,0.00020639,2]
[366462033,1750267838494,-182.964,0.00020666,2]
[366462035,1750267838504,-500.0,0.00020867,2]
[366462037,1750267838513,-7361.3500843,0.00020867,2]
[366462039,1750267838522,-246.35976733,0.00021444,2]
[366462041,1750267838532,-1307.28,0.00021445,2]
[366462043,1750267838541,-10.88750828,0.000215,2]
[366462045,1750267838553,-538.8155538,0.000215,2]
[366462048,1750267838565,-337.90960781,0.000215,2]
[366462070,1750267838763,-152.55569343,0.000215,2]
[366462072,1750267838772,-1000.0,0.00021653,2]
[366462074,1750267838782,-873.57596742,0.000219,6]
[366462076,1750267838792,-536.17,0.00021907,3]
[366462078,1750267838801,-339.71250266,0.00021916,2]
[366462080,1750267838810,-1000.0,0.00021916,2]
[366462082,1750267838819,-1000.0,0.00021916,2]
[366462084,1750267838829,-1000.0,0.00021916,2]
[366462086,1750267838841,-1000.0,0.00021916,2]
[366462088,1750267838850,-1000.0,0.00021916,2]
[366462090,1750267838860,-1000.0,0.00021916,2]
[366462092,1750267838871,-460.0,0.00021917,6]
[366462094,1750267838880,-460.0,0.00021917,6]
[366462096,1750267838890,-460.0,0.00021917,6]
[366462098,1750267838900,-157.81000839,0.00021917,6]
[366462100,1750267838911,-460.0,0.00021917,6]
[366462102,1750267838921,-253.22381847,0.00021917,6]
[366462104,1750267838931,-340.0,0.00021917,6]
[366462106,1750267838940,-460.0,0.00021917,6]
[366462108,1750267838949,-372.22530489,0.00021917,6]
[366462110,1750267838958,-360.0,0.00021917,6]
[366462112,1750267838968,-460.0,0.00021917,6]
[366462114,1750267838977,-326.70531427,0.00021917,6]
[366462116,1750267838987,-460.0,0.00021917,6]
[366462118,1750267838996,-460.0,0.00021917,6]
[366462120,1750267839006,-361.91397795,0.00021917,6]
[366462122,1750267839015,-329.2,0.00021917,6]
[366462124,1750267839024,-325.83057952,0.00021917,6]
[366462126,1750267839034,-460.0,0.00021917,6]
[366462128,1750267839043,-169.23047616,0.00021917,6]
[366462130,1750267839053,-300.0,0.00021917,6]
[366462132,1750267839062,-460.0,0.00021917,6]
[366462134,1750267839071,-460.0,0.00021917,6]
[366462136,1750267839080,-460.0,0.00021917,6]
[366462138,1750267839089,-460.0,0.00021917,6]
[366462140,1750267839098,-460.0,0.00021917,6]
[366462142,1750267839108,-460.0,0.00021917,6]
[366462144,1750267839117,-440.0,0.00021917,6]
[366462146,1750267839127,-460.0,0.00021917,6]
[366462148,1750267839137,-460.0,0.00021917,6]
[366462150,1750267839146,-460.0,0.00021917,6]
[366462152,1750267839155,-460.0,0.00021917,6]
[366462154,1750267839164,-440.0,0.00021917,6]
[366462156,1750267839173,-460.0,0.00021917,6]
[366462158,1750267839182,-460.0,0.00021917,6]
[366462160,1750267839191,-460.0,0.00021917,6]
[366462162,1750267839200,-460.0,0.00021917,6]
[366462164,1750267839210,-460.0,0.00021917,6]
[366462166,1750267839219,-460.0,0.00021917,6]
[366462168,1750267839228,-354.89766306,0.00021917,6]
[366462170,1750267839238,-460.0,0.00021917,6]
[366462172,1750267839247,-460.0,0.00021917,6]
[366462174,1750267839257,-460.0,0.00021917,6]
[366462176,1750267839268,-454.0935569,0.00021917,6]
[366462178,1750267839277,-460.0,0.00021917,6]
[366462180,1750267839286,-460.0,0.00021917,6]
[366462182,1750267839296,-460.0,0.00021917,6]
[366462184,1750267839305,-460.0,0.00021917,6]
[366462186,1750267839314,-460.0,0.00021917,6]
[366462188,1750267839323,-460.0,0.00021917,6]
[366462190,1750267839332,-460.0,0.00021917,6]
[366462192,1750267839342,-490.2,0.00021917,6]
[366462194,1750267839352,-460.0,0.00021917,6]
[366462196,1750267839363,-460.0,0.00021917,6]
[366462198,1750267839373,-460.0,0.00021917,6]
[366462200,1750267839382,-460.0,0.00021917,6]
[366462202,1750267839391,-460.0,0.00021917,6]
[366462204,1750267839401,-447.69334001,0.00021917,6]
[366462206,1750267839410,-460.0,0.00021917,6]
[366462208,1750267839420,-460.0,0.00021917,6]
[366462210,1750267839429,-460.0,0.00021917,6]
[366462212,1750267839438,-460.0,0.00021917,6]
[366462214,1750267839448,-503.27,0.00021917,6]
[366462216,1750267839457,-460.0,0.00021917,6]
[366462218,1750267839466,-460.0,0.00021917,6]
[366462220,1750267839475,-476.14927129,0.00021917,6]
[366462222,1750267839484,-430.0,0.00021917,6]
[366462224,1750267839493,-460.0,0.00021917,6]
[366462226,1750267839503,-460.0,0.00021917,6]
[366462228,1750267839512,-430.0,0.00021917,6]
[366462230,1750267839521,-460.0,0.00021917,6]
[366462232,1750267839531,-460.0,0.00021917,6]
[366462233,1750267839540,-532.26312975,0.00021917,6]
[366462236,1750267839549,-460.0,0.00021917,6]
[366462237,1750267839558,-334.02780532,0.00021917,6]
[366462238,1750267839567,-430.0,0.00021917,6]
[366462239,1750267839576,-460.0,0.00021917,6]
[366462240,1750267839585,-460.0,0.00021917,6]
[366462241,1750267839594,-460.0,0.00021917,6]
[366462242,1750267839603,-460.0,0.00021917,6]
[366462243,1750267839613,-460.0,0.00021917,6]
[366462244,1750267839621,-440.0,0.00021917,6]
[366462245,1750267839631,-460.0,0.00021917,6]
[366462246,1750267839640,-430.0,0.00021917,6]
[366462247,1750267839649,-460.0,0.00021917,6]
[366462248,1750267839657,-460.0,0.00021917,6]
[366462249,1750267839666,-460.0,0.00021917,6]
[366462250,1750267839675,-460.0,0.00021917,6]
[366462251,1750267839684,-418.61908252,0.00021917,6]
[366462252,1750267839693,-440.0,0.00021917,6]
[366462253,1750267839702,-460.0,0.00021917,6]
[366462254,1750267839711,-1176.29,0.00021917,6]
[366462255,1750267839721,-460.0,0.00021917,6]
[366462256,1750267839730,-460.0,0.00021917,6]
[366462257,1750267839739,-360.03618205,0.00021917,6]
[366462258,1750267839748,-460.0,0.00021917,6]
[366462259,1750267839757,-499.68,0.00021917,6]
[366462260,1750267839766,-460.0,0.00021917,6]
[366462261,1750267839774,-460.0,0.00021917,6]
[366462262,1750267839783,-440.0,0.00021917,6]
[366462263,1750267839792,-440.0,0.00021917,6]
[366462264,1750267839801,-430.0,0.00021917,6]
[366462265,1750267839809,-460.0,0.00021917,6]
[366462266,1750267839818,-421.68218199,0.00021917,6]
[366462267,1750267839828,-460.0,0.00021917,6]
[366462268,1750267839839,-440.0,0.00021917,6]
[366462270,1750267839851,-460.0,0.00021917,6]
[366462271,1750267839862,-460.0,0.00021917,6]
[366462272,1750267839871,-2514.75,0.00021917,6]
[366462274,1750267839881,-320.0,0.00021917,6]
[366462276,1750267839893,-460.0,0.00021917,6]
[366462278,1750267839903,-460.0,0.00021917,6]
[366462280,1750267839912,-460.0,0.00021917,6]
[366462282,1750267839923,-460.0,0.00021917,6]
[366462284,1750267839932,-460.0,0.00021917,6]
[366462286,1750267839942,-492.75,0.00021917,6]
[366462288,1750267839951,-460.0,0.00021917,6]
[366462290,1750267839960,-320.0,0.00021917,6]
[366462292,1750267839969,-460.0,0.00021917,6]
[366462294,1750267839978,-460.0,0.00021917,6]
[366462296,1750267839987,-460.0,0.00021917,6]
[366462298,1750267839996,-499.09,0.00021917,6]
[366462300,1750267840006,-460.0,0.00021917,6]
[366462302,1750267840015,-460.0,0.00021917,6]
[366462305,1750267840025,-601.02259519,0.00021917,6]
[366462307,1750267840034,-580.0,0.00021917,6]
[366462309,1750267840044,-310.0,0.00021917,6]
[366462311,1750267840053,-460.0,0.00021917,6]
[366462312,1750267840063,-2763.14,0.00021917,6]
[366462315,1750267840072,-460.0,0.00021917,6]
[366462316,1750267840082,-460.0,0.00021917,6]
[366462319,1750267840091,-2575.06,0.00021917,6]
[366462320,1750267840102,-1626.15,0.00021917,6]
[366462323,1750267840112,-1083.03,0.00021917,6]
[366462324,1750267840121,-460.0,0.00021917,6]
[366462327,1750267840132,-460.0,0.00021917,6]